[Event "Summer Prague Open-A 2022"]
[Site "Prague"]
[Date "2022.08.12"]
[Round "9.2"]
[White "Lalic, Bogdan"]
[Black "Kaspi, Alexander"]
[Result "1/2-1/2"]
[ECO "D30"]
[WhiteElo "2412"]
[BlackElo "2414"]
[Annotator "TA"]
[PlyCount "56"]
[EventDate "2022.08.05"]
[EventType "swiss"]
[EventCountry "CZE"]
[SourceTitle "playchess.com"]
[Source "ChessBase"]
[SourceQuality "1"]
[TimeControl "40/5400+30:1800+30"]

{[%evp 10,56,3,0,46,46,43,31,33,31,52,51,58,56,65,66,75,61,66,58,87,69,97,91,92,88,88,74,76,63,78,72,91,63,87,62,66,63,74,43,43,51,48,19,28,0,58,0,72]} 1. d4 {[%emt 0:04:55]} d5 {[%emt 0:00:20]} 2. c4 {[%emt 0:00:10]} e6 {[%emt 0:00:06]} 3. Nf3 {[%emt 0:00:27]} c6 {[%emt 0:00:19]} 4. Bg5 {[%emt 0:00:23]} Be7 {[%emt 0:01:27]} 5. Bxe7 {[%emt 0:00:14]} Qxe7 {[%emt 0:00:15]} 6. Nbd2 {[%emt 0:01:40]} f5 {[%emt 0:00:12] D30: Queen's Gambit Declined: Systems without Nc3.} (6... Nf6 $11) 7. e3 $14 {[%emt 0:01:02]} Nf6 {[%emt 0:00:07]} 8. Be2 {[%emt 0:00:23]} O-O {[%emt 0:06:28] White is slightly better.} 9. O-O {[%emt 0:00:20]} Nbd7 {[%emt 0:09:48]} 10. Qc2 {[%emt 0:00:59] [#]} Ne4 $146 {[%emt 0:01:14]} ({Predecessor:} 10... a5 11. Rac1 Ne8 12. Ne1 Nd6 13. Nd3 Kh8 14. f3 Qf6 15. Qc3 dxc4 16. Nxc4 Nxc4 17. Qxc4 {1-0 (38) Sarwinski,M (2380)-Ustianovich,N (2255) Swidnica 2000}) 11. a3 {[%emt 0:05:42][%cal Ba2a3,Ba3a4][%mdl 32]} Ndf6 {[%emt 0:06:50]} 12. b4 {[%emt 0:05:21]} Nxd2 {[%emt 0:03:20]} 13. Qxd2 {[%emt 0:02:10]} Bd7 {[%emt 0:01:17]} 14. Ne5 {[%emt 0:04:47]} Rfc8 {[%emt 0:02:39]} 15. a4 {[%emt 0:01:43]} a6 {[%emt 0:01:41]} 16. Qb2 {[%emt 0:02:32]} Be8 {[%emt 0:00:21]} 17. c5 {[%emt 0:04:14]} Nd7 {[%emt 0:02:00]} 18. Nxd7 {[%emt 0:01:53] White is much more active. The black rooks are badly placed.} Qxd7 {[%emt 0:04:24]} 19. Ra3 {[%emt 0:01:50]} Rcb8 {[%emt 0:01:19]} 20. Rb3 {[%emt 0:01:16]} Ra7 {[%emt 0:03:03]} 21. Qc3 {[%emt 0:11:01]} Rba8 {[%emt 0:05:05]} 22. Rfb1 {[%emt 0:03:03]} Qd8 {[%emt 0:00:46]} 23. h3 {[%emt 0:01:50]} Kf8 {[%emt 0:02:19]} 24. b5 {[%emt 0:00:54]} axb5 {[%emt 0:00:18]} 25. axb5 {[%emt 0:00:06]} Ra2 {[%emt 0:01:05]} 26. R3b2 {[%emt 0:05:04]} R2a3 {[%emt 0:01:02]} 27. Rb3 {[%emt 0:04:43]} Ra2 {[%emt 0:00:33]} 28. R3b2 {[%emt 0:02:52]} R2a3 {[%emt 0:00:37] Weighted Error Value: White=0.13 (very precise) /Black=0.09 (flawless)} 1/2-1/2

[Event "Summer Prague Open-A 2022"]
[Site "Prague"]
[Date "2022.08.12"]
[Round "9.3"]
[White "Hrabusa, Matej"]
[Black "Zanan, Evgeny"]
[Result "0-1"]
[ECO "A50"]
[WhiteElo "2354"]
[BlackElo "2521"]
[Annotator "TA"]
[PlyCount "73"]
[EventDate "2022.08.05"]
[EventType "swiss"]
[EventCountry "CZE"]
[SourceTitle "playchess.com"]
[Source "ChessBase"]
[SourceQuality "1"]
[TimeControl "40/5400+30:1800+30"]

{[%evp 9,73,5,12,-9,12,-13,16,17,16,17,16,0,0,-18,-34,-18,-8,-18,0,-54,0,20,29,26,45,43,45,45,39,0,8,-18,-54,-95,-95,-93,-98,-110,-95,-91,-96,-96,-105,-279,-88,-596,-278,-254,-260,-462,-425,-382,-381,-611,-610,-989,-946,-1543,-1416,-4786,-4810,-1850,-1606,-1345,-1070,-29982]} 1. d4 {[%emt 0:00:03]} Nf6 {[%emt 0:10:13]} 2. c4 {[%emt 0:00:13]} g6 {[%emt 0:00:44]} 3. h4 {[%emt 0:00:24]} c5 {[%emt 0:02:36]} 4. d5 {[%emt 0:00:10]} e6 {[%emt 0:16:05]} 5. Nc3 {[%emt 0:02:02]} exd5 {[%emt 0:00:14]} 6. Nxd5 {[%emt 0:04:28] E60: King's Indian: Unusual lines and Fianchetto Variation without Nc3.} Nxd5 {[%emt 0:03:21]} 7. Qxd5 {[%emt 0:00:15]} Nc6 {[%emt 0:03:19] [#] Against Qe5+} 8. Bg5 $146 {[%emt 0:04:30] The position is equal.} ({Predecessor:} 8. Nf3 d6 9. Ng5 Qe7 10. Bd2 Bg7 11. h5 Bf5 12. g4 Bxb2 13. gxf5 Bxa1 14. hxg6 fxg6 15. Rxh7 Rxh7 {1-0 (63) Roshka,Y (2497)-Vrchotka,J (1959) Ceske Budejovice 2022}) 8... Be7 {[%emt 0:02:12]} 9. O-O-O {[%emt 0:05:34]} O-O {[%emt 0:12:17]} 10. a3 {[%emt 0:05:34] Against Nb4} d6 {[%emt 0:01:34]} 11. Bxe7 {[%emt 0:02:32]} Qxe7 {[%emt 0:00:05]} 12. e3 {[%emt 0:10:16]} Na5 {[%emt 0:15:54]} 13. Nf3 {[%emt 0:10:51]} (13. Qxd6 $2 Bf5 $1 14. Rd3 Qe8 $19) 13... Be6 {[%emt 0:09:26]} 14. Qg5 {[%emt 0:13:48] [#]} (14. Qxd6 $11 Bf5 15. b4) 14... Bf5 $1 {[%emt 0:05:17]} 15. Nd2 $11 {[%emt 0:03:18]} (15. b4 f6) 15... f6 {[%emt 0:01:39]} 16. Qf4 {[%emt 0:02:31]} Rad8 {[%emt 0:05:05]} 17. h5 {[%emt 0:05:38] Hoping for g4.} Qe5 $1 {[%emt 0:03:17]} 18. hxg6 {[%emt 0:01:35]} Bxg6 {[%emt 0:00:07]} 19. g3 {[%emt 0:01:51]} d5 $40 {[%emt 0:02:28][%mdl 128] Black is up to no good.} 20. Qxe5 {[%emt 0:03:54]} fxe5 {[%emt 0:00:06]} 21. f4 {[%emt 0:00:05] Black continues to play with concentration.} d4 {[%emt 0:00:51]} 22. exd4 {[%emt 0:02:21]} Rxd4 {[%emt 0:00:05] And now ...Rfd8 would win.} ({Don't play} 22... exf4 $6 23. d5 $11) (22... exd4 23. Bg2 $11) 23. b4 {[%emt 0:01:23]} Nc6 {[%emt 0:00:04] Black is more active.} ({But not} 23... exf4 24. bxa5 fxg3 25. Rh3 $16) 24. bxc5 {[%emt 0:03:16]} exf4 {[%emt 0:00:04]} 25. gxf4 {[%emt 0:00:07]} Rfxf4 {[%emt 0:00:27] Strongly threatening ...Rf2.} 26. Bh3 $2 {[%emt 0:04:28]} (26. Re1 $17) 26... Rf2 $2 {[%emt 0:01:57]} (26... Rd3 $19 27. Bg2 Na5) 27. Rhf1 $2 {[%emt 0:01:21][%mdl 8192] [#]} (27. Rhe1 $17) 27... Rh2 {[%emt 0:00:08]} (27... Ne5 $142 $1 28. Be6+ (28. c6 bxc6) 28... Kg7) 28. Bf5 $19 {[%emt 0:02:14] [#]} Bh5 {[%emt 0:01:25]} 29. Be6+ $2 {[%emt 0:03:14]} (29. Rg1+ Kh8 30. Be6) 29... Kg7 {[%emt 0:00:14]} 30. Nf3 {[%emt 0:01:38]} Rxd1+ {[%emt 0:00:06]} 31. Kxd1 $2 {[%emt 0:00:08]} (31. Rxd1 Bxf3 32. Rd7+ Kf6 33. Bd5) 31... Ne5 {[%emt 0:01:37] Black is clearly winning.} 32. Bd5 {[%emt 0:00:50]} Nxf3 {[%emt 0:01:35]} 33. Bxf3 {[%emt 0:00:15] [#]} Rh1 $3 {[%emt 0:00:04][%mdl 512]} 34. Bxh5 {[%emt 0:03:09]} (34. Kd2 Rxf1) 34... Rxf1+ {[%emt 0:00:05]} 35. Ke2 {[%emt 0:00:08]} Rf4 {[%emt 0:00:11]} 36. Kd3 {[%emt 0:00:17]} Rf5 {[%emt 0:00:07][%csl LRc5,LRh5]} 37. Kd4 {Weighted Error Value: White=0.97/Black=0.46} 0-1

[Event "Summer Prague Open-A 2022"]
[Site "Prague"]
[Date "2022.08.12"]
[Round "9.4"]
[White "Ranaldi, Lucas"]
[Black "Schmaltz, Roland"]
[Result "1-0"]
[ECO "A04"]
[WhiteElo "2339"]
[BlackElo "2466"]
[Annotator "TA"]
[PlyCount "89"]
[EventDate "2022.08.05"]
[EventType "swiss"]
[EventCountry "CZE"]
[SourceTitle "playchess.com"]
[Source "ChessBase"]
[SourceQuality "1"]
[TimeControl "40/5400+30:1800+30"]

{[%evp 19,89,23,17,18,27,37,38,0,15,0,-14,-10,-7,0,0,-10,-15,-18,0,0,0,0,0,0,93,0,58,21,21,21,18,17,20,25,19,25,24,18,19,22,48,48,62,61,62,55,60,80,107,0,62,77,161,70,79,76,376,372,617,539,575,552,29973,29974,29971,29972,29981,29982,29985,29986,29972,5097]} 1. Nf3 {[%emt 0:00:04]} c5 {[%emt 0:45:41]} 2. c4 {[%emt 0:00:15]} Nc6 {[%emt 0:00:04]} 3. Nc3 {[%emt 0:00:16]} g6 {[%emt 0:00:05]} 4. e3 {[%emt 0:00:21]} Nf6 {[%emt 0:00:12][%cal Bg8f6,Bf6d5,Bd5c3][%mdl 32]} 5. d4 {[%emt 0:00:24]} cxd4 {[%emt 0:00:06]} 6. exd4 {[%emt 0:00:12]} d5 {[%emt 0:00:09]} 7. cxd5 {[%emt 0:00:37]} Nxd5 {[%emt 0:00:08]} 8. Qb3 {[%emt 0:00:10]} Nxc3 {[%emt 0:00:06]} 9. Bc4 {[%emt 0:00:16]} e6 {[%emt 0:00:19] outshines the older 9...Nd5.} 10. bxc3 {[%emt 0:00:17]} Bg7 {[%emt 0:00:13]} 11. Ba3 {[%emt 0:01:35] Threatens to win with d5. A35: Symmetrical English: 2 Nc3 Nc6 3 Nf3.} Na5 {[%emt 0:02:53]} 12. Bb5+ {[%emt 0:02:16]} Bd7 {[%emt 0:00:11]} 13. Qb4 {[%emt 0:04:23][%cal Od4d5] White is slightly better.} b6 {[%emt 0:03:18]} 14. Ne5 {[%emt 0:41:31]} (14. d5 $5 {[%cal Rd5e6]} Bxb5 15. Qxb5+ Qd7 16. Qxd7+ Kxd7 17. dxe6+ fxe6 18. O-O-O+ Kc7 19. Bd6+ Kb7 20. Be5 Bxe5 21. Nxe5 $11) 14... Bxe5 {[%emt 0:03:37]} 15. dxe5 {[%emt 0:00:32]} Bxb5 {[%emt 0:00:13]} 16. Qxb5+ {[%emt 0:00:26]} Qd7 {[%emt 0:00:08]} 17. Qxd7+ {[%emt 0:10:01]} Kxd7 {[%emt 0:00:06]} 18. O-O-O+ {[%emt 0:00:38] [#]} Ke8 $146 {[%emt 0:02:33]} ({Predecessor:} 18... Kc7 19. Be7 Rhe8 20. Bf6 Rac8 21. Kc2 Nb7 22. Rd4 Nc5 {½-½ (31) Bluebaum,M (2643)-Lupulescu,C (2620) Germany 2018}) 19. Rd4 {[%emt 0:06:11] Inhibits Nc4.} Rc8 {[%emt 0:03:50]} 20. Rhd1 {[%emt 0:02:33]} Nc4 {[%emt 0:01:24]} 21. Bd6 {[%emt 0:02:50]} b5 {[%emt 0:00:13] [#]} (21... Nxd6 $11 {remains equal.} 22. Rxd6 Kf8) 22. a4 {[%emt 0:05:26] White is more active.} (22. Bc7 $1 $16 {Hoping for Rd8+.} Ke7 (22... Nb6 23. Bxb6) 23. Rd7+ Kf8 24. Bd6+ Kg7 25. Rd3 (25. Rxa7 Ra8 $14)) 22... a6 {[%emt 0:14:07]} (22... Nxd6 $11 23. Rxd6 bxa4) 23. Kc2 {[%emt 0:02:49][%cal Od6c7] White wants to play Bc7!} Kd7 $1 {[%emt 0:10:25] Prevents Bc7+.} ({Don't do} 23... bxa4 24. Rb1 Nxd6 25. exd6 $16) 24. axb5 {[%emt 0:00:35]} axb5 {[%emt 0:00:03]} 25. Ra1 $1 {[%emt 0:04:09]} Kc6 {[%emt 0:00:10]} 26. Ra7 {[%emt 0:00:39]} Ra8 {[%emt 0:00:16]} 27. Rc7+ {[%emt 0:02:22]} Kb6 {[%emt 0:00:07] ...Ra2+ is the strong threat.} 28. Rxf7 {[%emt 0:00:19]} Ra2+ {[%emt 0:00:59]} 29. Kd3 {[%emt 0:00:42]} Rha8 {[%emt 0:02:16]} 30. Rf6 {[%emt 0:00:51]} ({Don't play} 30. Rxh7 Rxf2 31. Rxc4 bxc4+ 32. Kxc4 Rc8+ 33. Kb3 Rxg2 $15) 30... Rd2+ {[%emt 0:06:00]} 31. Ke4 {[%emt 0:00:02]} Re2+ {[%emt 0:00:15]} 32. Kf3 {[%emt 0:00:18]} Raa2 {[%emt 0:00:15]} 33. Kg3 {[%emt 0:01:05]} Rac2 {[%emt 0:04:29] [#]} 34. Rxe6 {[%emt 0:02:41]} (34. Bb4 $1 $16 Rxe5 35. h4) 34... Rxc3+ {[%emt 0:00:05]} (34... Rxf2 $11 35. Bb4+ Kc7) 35. f3 $14 {[%emt 0:00:24]} Ka5 {[%emt 0:00:27] Prevents Bb4+.} (35... Ne3 $16 36. Kh3 Rc6) 36. Bc7+ {[%emt 0:02:10]} ({White should try} 36. Bf8 $18) 36... Kb4 {[%emt 0:00:16]} 37. Rc6 $36 {[%emt 0:00:59][%mdl 2048] White is in control.} Rcc2 $2 {[%emt 0:00:28][%mdl 8192] [#] This costs Black the game.} (37... Kb3 $16) 38. e6 $1 $18 {[%emt 0:00:25] Black must now prevent Re4.} Rxg2+ $2 {[%emt 0:01:06]} (38... Kb3 39. Re4 Ne3 40. Rxc2 Nf5+ 41. Kf4 Rxc2) 39. Kf4 {[%emt 0:00:36]} Rce2 {[%emt 0:00:47]} 40. Re4 {[%emt 0:04:39]} Rxh2 {[%emt 0:00:10] [#]} 41. Rcxc4+ $1 {[%emt 0:04:55][%mdl 576] Remove Defender. White mates.} bxc4 {[%emt 0:00:06]} 42. e7 {[%emt 0:00:08]} Rxe4+ {[%emt 0:02:22]} 43. fxe4 {[%emt 0:00:13]} c3 {[%emt 0:00:10]} 44. e8=Q {[%emt 0:00:33]} c2 {[%emt 0:00:10]} 45. Qc6 {[%emt 0:01:14] Weighted Error Value: White=0.11 (very precise) /Black=0.50} (45. Bd6+ $142 Ka5 46. Qc6 Rh1 47. Qxc2 g5+ 48. Kg3 g4 49. e5 Rh5 50. e6) 1-0

[Event "Summer Prague Open-A 2022"]
[Site "Prague"]
[Date "2022.08.12"]
[Round "9.5"]
[White "Mirzoev, Azer"]
[Black "Mirimanian, Hayk"]
[Result "1-0"]
[ECO "D35"]
[WhiteElo "2424"]
[BlackElo "2228"]
[Annotator "TA"]
[PlyCount "73"]
[EventDate "2022.08.05"]
[EventType "swiss"]
[EventCountry "CZE"]
[SourceTitle "playchess.com"]
[Source "ChessBase"]
[SourceQuality "1"]
[TimeControl "40/5400+30:1800+30"]

{[%evp 20,73,23,16,29,22,22,25,31,5,28,20,25,18,26,17,18,17,18,2,25,-42,33,22,31,23,39,53,60,48,50,53,56,56,54,53,99,73,101,92,235,240,294,294,297,287,653,460,462,449,392,401,2402,2379,29990,29991]} 1. c4 {[%emt 0:00:03]} e6 {[%emt 0:06:10]} 2. d4 {[%emt 0:00:13]} d5 {[%emt 0:01:08]} 3. cxd5 {[%emt 0:00:55]} exd5 {[%emt 0:00:07]} 4. Nc3 {[%emt 0:00:03]} Nf6 {[%emt 0:01:13]} 5. Bg5 {[%emt 0:00:09]} Be7 {[%emt 0:00:05]} 6. e3 {[%emt 0:00:08]} O-O {[%emt 0:05:02]} 7. Bd3 {[%emt 0:00:15]} Re8 {[%emt 0:01:30]} 8. Qc2 {[%emt 0:00:36]} h6 {[%emt 0:01:36]} 9. Bh4 {[%emt 0:00:08]} c6 {[%emt 0:12:11]} 10. Nge2 {[%emt 0:00:21]} Nbd7 {[%emt 0:06:38]} 11. h3 {[%emt 0:01:12]} Nb6 {[%emt 0:03:51][%cal Of6e4] D36: Queen's Gambit Declined: Exchange Variation: Main line (5 Bg5 c6 6 Qc2).} 12. Bg3 {[%emt 0:04:07]} Bf8 {[%emt 0:02:06]} 13. O-O {[%emt 0:01:14]} Bd7 {[%emt 0:05:44] [#] White has an edge.} 14. Rfc1 $146 {[%emt 0:05:26]} ({Predecessor:} 14. b3 Nc8 15. Be5 Nb6 16. a3 a6 17. Rfc1 Rc8 18. Nf4 Ra8 19. Rcb1 Nc8 20. Na4 Ne4 21. Ne2 Ncd6 22. b4 b6 {0-1 (22) Bertorello,J (2312)-Boehme,S (2366) ICCF email 2018}) 14... Qe7 {[%emt 0:08:17]} 15. Bh2 {[%emt 0:04:52]} g6 {[%emt 0:00:39]} 16. Ng3 {[%emt 0:02:30]} (16. Be5 {with more complications.} Bg7 17. Nf4 Nh5 18. Bc7) 16... h5 {[%emt 0:04:22]} 17. Rab1 {[%emt 0:00:36]} h4 {[%emt 0:02:32]} 18. Nf1 {[%emt 0:00:14]} Ne4 {[%emt 0:10:31]} 19. Re1 {[%emt 0:07:02]} Bg7 {[%emt 0:02:29]} 20. f3 {[%emt 0:01:01]} (20. Nd2 $11) 20... Nd6 {[%emt 0:00:40]} (20... Nxc3 $15 21. Qxc3 Rac8) 21. Kh1 {[%emt 0:01:36]} Nf5 {[%emt 0:07:55]} 22. Qf2 {[%emt 0:01:18]} Rac8 {[%emt 0:04:42]} 23. Rbd1 {[%emt 0:00:28]} Rcd8 {[%emt 0:03:01]} 24. Bc7 {[%emt 0:05:31]} Rc8 {[%emt 0:01:50]} 25. Bf4 {[%emt 0:00:03]} Rcd8 {[%emt 0:03:38]} 26. Bxf5 {[%emt 0:00:51]} Bxf5 {[%emt 0:00:19]} 27. e4 $1 {[%emt 0:00:07]} dxe4 {[%emt 0:02:52]} (27... Be6 $14) 28. fxe4 $16 {[%emt 0:00:06]} Bc8 {[%emt 0:00:12] [#]} 29. Nh2 $1 {[%emt 0:00:40]} Qb4 {[%emt 0:01:03] Loses the game.} (29... g5 $16 {might work better.} 30. Bc1 f6) 30. Nf3 $18 {[%emt 0:01:00]} Nc4 {[%emt 0:00:48]} 31. Bc1 {[%emt 0:01:08][%cal Bf4c1,Bc1g5,Bg5f6][%mdl 32]} Nd6 {[%emt 0:02:16]} 32. Qxh4 {[%emt 0:01:56] Black must now prevent Ng5.} Nb5 $2 {[%emt 0:00:22]} (32... f6 33. Qg3 g5) 33. Bg5 {[%emt 0:03:47]} Rd7 {[%emt 0:00:39][%cal Rb5d4]} 34. Nxb5 {[%emt 0:02:59]} Qxb5 {[%emt 0:00:01]} 35. e5 {[%emt 0:03:14] [#] Against f6. Strongly threatening Bf6.} Qxb2 {[%emt 0:01:00]} (35... Rf8 $142 36. Bh6 Bxh6) 36. Bf6 {[%emt 0:00:15] White threatens Ng5 and mate.} Qb4 {[%emt 0:00:30]} 37. Ng5 {[%emt 0:04:48] Weighted Error Value: White=0.16 (very precise) /Black=0.71} 1-0

[Event "Summer Prague Open-A 2022"]
[Site "Prague"]
[Date "2022.08.12"]
[Round "9.6"]
[White "Philipp, Mathias"]
[Black "Cernousek, Lukas"]
[Result "0-1"]
[ECO "B51"]
[WhiteElo "2092"]
[BlackElo "2429"]
[Annotator "TA"]
[PlyCount "122"]
[EventDate "2022.08.05"]
[EventType "swiss"]
[EventCountry "CZE"]
[SourceTitle "playchess.com"]
[Source "ChessBase"]
[SourceQuality "1"]
[TimeControl "40/5400+30:1800+30"]

{[%evp 9,122,18,24,19,30,17,27,28,30,22,19,18,43,27,25,18,27,0,0,-16,0,0,0,-2,0,-22,-20,-42,6,6,6,7,7,0,0,-3,7,-7,35,22,76,-47,-5,-17,0,-58,-29,-131,-96,-164,-104,-92,-106,-159,-143,-158,-163,-171,-166,-188,-170,-170,-163,-170,-169,-171,-169,-156,-156,-622,-185,-185,-179,-157,-164,-166,-171,-224,-213,-226,-213,-237,-218,-227,-218,-383,-400,-374,-395,-370,-389,-372,-352,-408,-55,-57,0,-360,-397,-400,-389,-618,-588,-943,-814,-29980,-1521,-29992,-29993,-29994,-371,-29995,-29996,-29996,-29997]} 1. e4 {[%emt 0:00:17]} c5 {[%emt 0:00:05]} 2. Nf3 {[%emt 0:00:04]} d6 {[%emt 0:00:05]} 3. Bb5+ {[%emt 0:00:26]} Nd7 {[%emt 0:00:07]} 4. O-O {[%emt 0:00:06]} a6 {[%emt 0:00:38]} 5. Bd3 {[%emt 0:00:08]} Ngf6 {[%emt 0:02:32]} 6. Re1 {[%emt 0:00:13] B51: Sicilian: Moscow Variation (3 Bb5+) without 3...Bd7.} g6 {[%emt 0:00:32]} 7. c3 {[%emt 0:00:04]} Bg7 {[%emt 0:04:06]} 8. Bc2 {[%emt 0:00:59] White has an edge.} b5 {[%emt 0:00:20]} 9. d4 {[%emt 0:00:26]} cxd4 {[%emt 0:00:50]} 10. cxd4 {[%emt 0:01:22]} Bb7 11. a4 {[%emt 0:07:23]} O-O {[%emt 0:06:11]} 12. Bd2 {[%emt 0:02:01]} Qb6 {[%emt 0:14:36] [#]} 13. a5 $146 {[%emt 0:08:20]} ({Predecessor:} 13. Na3 e5 14. dxe5 Nxe5 15. Nxe5 dxe5 16. Qe2 Bc6 17. Be3 Qb7 18. f3 Nd7 19. axb5 axb5 {0-1 (51) Rudolf,M (2337)-Livaic,L (2474) Budapest 2019}) 13... Qc7 {[%emt 0:02:04]} 14. Bb4 {[%emt 0:00:16]} Rac8 {[%emt 0:02:54]} 15. Bd3 {[%emt 0:01:17]} Rfd8 {[%emt 0:05:29][%cal Od7c5] White must now prevent ...Nc5!} 16. Nc3 {[%emt 0:01:29]} Nc5 {[%emt 0:06:24]} 17. Bc2 {[%emt 0:01:04] [#]} (17. dxc5 dxc5 18. Nxb5 axb5 $17) 17... e5 $1 {[%emt 0:09:06]} 18. d5 {[%emt 0:06:25] [#]} (18. dxc5 $2 dxc5 19. Nd5 Nxd5 20. exd5 cxb4 $19) (18. Nxb5 axb5) 18... Bh6 {[%emt 0:12:37]} (18... Ncxe4 $1 $15 19. Bxe4 (19. Nxe4 Nxd5 20. Ba3 Qxc2 $17) 19... Qc4 20. Bxd6 (20. Ba3 b4 $15) 20... Rxd6 21. Nxe5 Qb4) 19. Ra3 {[%emt 0:02:57]} Qd7 {[%emt 0:09:05]} 20. h3 {[%emt 0:04:21]} Rc7 {[%emt 0:00:19]} 21. Nh2 {[%emt 0:02:20]} Nh5 {[%emt 0:03:14]} 22. Ng4 {[%emt 0:02:48]} Bg5 {[%emt 0:00:41]} 23. g3 {[%emt 0:02:56]} Bc8 {[%emt 0:06:32]} 24. Na2 {[%emt 0:05:09]} Kh8 {[%emt 0:10:31]} (24... Qe7 $11 {keeps the balance.}) 25. Nh2 {[%emt 0:08:37]} (25. Bc3 $16) 25... Ng7 {[%emt 0:03:03]} (25... Qxh3 {feels hotter.} 26. g4 Qh4 27. gxh5 Bf4) 26. h4 {[%emt 0:00:27]} Bh6 {[%emt 0:00:49]} 27. Qe2 {[%emt 0:04:20]} (27. Nf3 $11) 27... f5 $1 $15 {[%emt 0:00:14][%cal Bf7f5,Bf5f4][%mdl 32]} 28. f3 {[%emt 0:01:12]} (28. Bd2 $11 {remains equal.} Bxd2 29. Qxd2) 28... Qe7 {[%emt 0:00:43]} 29. Rf1 {[%emt 0:05:41]} (29. exf5 $17 Nxf5 30. Qf2) 29... Rf8 {[%emt 0:00:16]} ({Black should play} 29... Nh5 $19 30. Qg2 f4) 30. Be1 {[%emt 0:00:47]} Nh5 {[%emt 0:00:46][%cal Bg7h5,Bh5g3,Bg3f1][%mdl 32]} ({Much weaker is} 30... fxe4 $6 31. fxe4 Rxf1+ 32. Nxf1 $11) 31. Rc3 {[%emt 0:01:01]} (31. exf5 $142 gxf5 32. f4) 31... f4 $17 {[%emt 0:00:35] Black is more active.} 32. g4 {[%emt 0:00:13]} Ng3 {[%emt 0:00:06]} 33. Qg2 {[%emt 0:00:54]} Nxf1 {[%emt 0:00:09]} 34. Nxf1 {[%emt 0:00:50]} Na4 {[%emt 0:00:25]} 35. Bxa4 {[%emt 0:03:31]} bxa4 {[%emt 0:00:11]} 36. Qc2 {[%emt 0:00:17]} Rxc3 {[%emt 0:01:04]} 37. Nxc3 {[%emt 0:00:06]} Bd7 {[%emt 0:00:40]} 38. Nxa4 {[%emt 0:00:23]} Rc8 {[%emt 0:00:12]} 39. Qb3 {[%emt 0:01:01]} (39. Bc3 $17) 39... Bb5 $2 {[%emt 0:01:08]} (39... Rc1 40. Qb8+ Kg7) 40. Nc3 $19 {[%emt 0:00:42]} Bc4 {[%emt 0:00:32]} 41. Qb6 {[%emt 0:34:34]} Bf8 {[%emt 0:03:47][%cal Bh6f8,Bf8e7,Be7h4][%mdl 32]} 42. Nd2 {[%emt 0:00:00]} Bd3 {[%emt 0:00:13]} 43. Bf2 {[%emt 0:00:00]} (43. Nb3 {is a better defense.}) 43... Qd7 {[%emt 0:05:10]} 44. Kg2 {[%emt 0:00:00]} Be7 {[%emt 0:00:25] Threatens to win with ...Qd8.} 45. Qb4 {[%emt 0:00:00]} Kg7 {[%emt 0:16:17]} 46. Qa3 {[%emt 0:00:00]} Qb7 {[%emt 0:01:50]} 47. Bb6 $2 {[%emt 0:00:00]} (47. Nd1 {was necessary.} Bc2 48. Nc3) 47... Bxh4 {[%emt 0:02:49] ...Qd7 is the strong threat.} 48. Qxd6 {[%emt 0:00:00]} Qe7 {[%emt 0:00:01] The board is on fire.} 49. Qxe7+ {[%emt 0:00:00]} Bxe7 {[%emt 0:00:01] This bishop pair is nice.} 50. Nb3 {[%emt 0:00:00]} Kf7 {[%emt 0:02:06]} 51. Kh1 {[%emt 0:00:43]} Rc4 $2 {[%emt 0:01:09]} ({Better is} 51... h5 $19 {aiming for ...hxg4.} 52. Nc1 Bc4 53. gxh5 gxh5) 52. Nd2 $1 $15 {[%emt 0:00:40] [#]} Rc8 {[%emt 0:00:43][%mdl 8192]} (52... Rd4 $1 $15 53. Bxd4 (53. Kg2 Bb4) 53... exd4) 53. Nb3 $1 $19 {[%emt 0:00:06]} h5 {[%emt 0:00:36]} 54. gxh5 {[%emt 0:02:50]} gxh5 {[%emt 0:00:01][%cal Bg6h5,Bh5h4,Bh4h3][%mdl 32]} 55. Bg1 {[%emt 0:08:00]} (55. Nc1 $142 Bc4 56. N1a2) 55... h4 {[%emt 0:00:59]} 56. Na4 {[%emt 0:00:30]} Rc2 {[%emt 0:00:45] ( -> ...Be2)} 57. Nbc5 {[%emt 0:00:39]} Bf1 {[%emt 0:01:22]} (57... Be2 $142 58. Kh2 Bf1+ 59. Bf2 Rxf2+ 60. Kg1 Rxf3 61. d6 Bxd6 62. Nb7 Be7 63. Nc3 Bc4 64. Kg2 Rg3+ 65. Kh1 Bd3 66. b4 Bxb4 67. Kh2 Bxc3 68. Nd6+ Kg6 69. Nf5 {[#]} Bd4 $1 70. Nxg3 hxg3+ 71. Kg2 Be2 72. Kh3 Kh5 73. Kg2 Kg4 74. Kh1 Bf3#) 58. b4 {[%emt 0:03:43]} h3 {[%emt 0:00:40]} 59. Nd7 {[%emt 0:01:58]} Bg2+ {[%emt 0:00:16]} 60. Kh2 {[%emt 0:00:04]} Bh4 {[%emt 0:00:10][%csl Gf4][%cal Rh4g3]} 61. Nxe5+ {[%emt 0:00:09]} Kg7 {[%emt 0:00:26] Weighted Error Value: White=0.60/Black=0.39} 0-1